bitfinex-derivatives/quotes_ETHF0:USTF0_20240930
["timestamp","ask_amount","ask_price","bid_price","bid_amount"]
[1727738004641,3.46875,2609.7,2609.4,0.38327]
[1727738004833,0.388,2609.8,2609.1,0.399]
[1727738004834,0.388,2609.8,2609.5,0.38326]
[1727738005135,0.38323,2609.8,2609.6,0.38325]
[1727738005340,5.8978,2609.9,2609.3,3.2078]
[1727738005541,6.28102,2609.9,2609.6,0.38324]
[1727738005739,0.38325,2609.7,2609.5,0.38327]
[1727738006136,2.69,2609.7,2609.3,3.2078]
[1727738006329,0.38325,2609.6,2609.3,3.2078]
[1727738006531,0.38325,2609.6,2609.4,0.38328]
[1727738007137,0.38327,2609.5,2609.3,3.59109]
[1727738007337,2.69,2609.7,2609.4,0.38328]
[1727738007338,0.38326,2609.6,2609.4,0.38328]
[1727738007548,2.69,2609.7,2609.3,3.2078]
[1727738007731,2.69,2609.5,2609.1,0.399]
[1727738007936,0.3962,2609.4,2609.1,0.399]
[1727738008135,0.77949,2609.4,2609.2,0.3833]
[1727738009141,0.77376,2609.6,2609.4,0.38327]
[1727738009337,0.38326,2609.6,2609.4,0.38327]
[1727738010638,2.69,2609.7,2609.4,0.38327]
[1727738010944,0.38326,2609.6,2609.4,0.38327]
[1727738013739,2.69,2609.7,2609.1,0.399]
[1727738013943,0.3722,2609.8,2609.7,0.38324]
[1727738014348,0.3722,2609.8,2609.3,3.6041]
[1727738014556,0.38326,2609.6,2609.3,3.59109]
[1727738014743,2.69,2609.7,2609.3,3.59109]
[1727738015050,3.07325,2609.7,2609.4,0.38328]
[1727738015644,0.38325,2609.6,2609.4,0.38328]
[1727738016049,3.07325,2609.7,2609.5,0.38327]
[1727738016850,0.38326,2609.6,2609.4,0.38328]
[1727738017252,3.07324,2609.7,2609.5,0.38326]
[1727738018049,3.07324,2609.7,2609.4,0.38327]
[1727738018357,3.07324,2609.7,2609.5,0.38326]
[1727738019451,3.07324,2609.7,2609.1,3.6068]
[1727738019659,3.07324,2609.7,2609.5,0.38326]
[1727738019852,0.38327,2609.5,2609.3,0.3833]
[1727738020059,0.38327,2609.5,2609.1,0.399]
[1727738020060,2.69,2609.4,2609.1,0.399]
[1727738020258,2.69,2609.4,2609.2,0.3833]
[1727738020555,2.69,2609.4,2609.3,0.3833]
[1727738020856,2.69,2609.4,2609.1,0.399]
[1727738021054,3.07331,2609.2,2609.1,0.399]
[1727738021455,2.69,2609.2,2609.1,0.38333]
[1727738022155,2.69,2609.2,2608.9,0.3685]
[1727738022356,0.3821,2609.1,2609.0,0.38333]
[1727738023053,0.3725,2609.4,2608.9,0.3685]
[1727738023252,0.3725,2609.4,2609.2,0.3833]
[1727738023652,0.75579,2609.4,2609.2,0.3833]
[1727738023863,2.69,2609.7,2609.1,3.2078]
[1727738024154,0.38325,2609.6,2609.4,0.38328]
[1727738024354,2.69,2609.7,2609.2,0.3659]
[1727738024558,2.69,2609.8,2609.2,0.3659]
[1727738024748,2.69,2609.8,2609.6,0.38325]
[1727738024749,3.07322,2609.8,2609.6,0.38325]
[1727738025451,2.69,2609.8,2609.6,0.38325]
[1727738025649,3.07322,2609.8,2609.6,0.38325]
[1727738026056,2.69,2609.8,2609.5,0.381]
[1727738026256,2.69,2609.8,2609.6,0.38325]
[1727738026758,2.69,2609.8,2609.5,0.381]
[1727738026959,0.3798,2609.9,2609.7,0.38323]
[1727738027162,0.3798,2609.9,2609.5,0.7487]
[1727738027359,0.76302,2609.9,2609.6,0.38324]
[1727738027759,0.3798,2609.9,2609.5,0.7487]
[1727738027950,0.76301,2609.9,2609.7,0.38323]
[1727738028153,3.2078,2610.2,2610.1,0.38318]
[1727738028359,3.2078,2610.5,2610.3,0.38314]
[1727738028662,0.3797,2610.7,2609.9,0.95803]
[1727738028663,2.69,2610.7,2610.1,3.2078]
[1727738028866,4.93398,2610.8,2610.2,3.4585]
[1727738028867,0.75398,2610.8,2610.2,3.4585]
[1727738029053,0.38312,2610.6,2610.4,0.38313]
[1727738029253,0.38309,2610.7,2610.4,0.38313]
[1727738029459,0.38311,2610.6,2610.3,0.38314]
[1727738029757,3.07311,2610.6,2610.2,1.1362]
[1727738029958,2.69,2610.6,2610.4,0.38313]
[1727738030156,3.44399,2610.8,2610.5,0.38312]
[1727738030556,0.3709,2610.8,2610.7,0.38309]
[1727738030856,0.76276,2611.0,2610.7,0.38309]
[1727738031052,0.76276,2611.0,2610.4,3.2078]
[1727738031053,0.3797,2611.0,2610.4,3.2078]
[1727738031255,0.38307,2610.9,2610.6,0.3831]
[1727738031455,0.38307,2610.9,2610.4,3.2078]
[1727738031860,0.38308,2610.8,2610.6,0.3831]
[1727738032059,0.38308,2610.8,2610.5,0.38311]
[1727738032255,0.38312,2610.6,2610.3,0.38314]
[1727738032455,2.69,2610.7,2610.2,0.7685]
[1727738032658,2.69,2610.7,2610.4,0.38313]
[1727738032659,3.0731,2610.7,2610.4,0.38313]
[1727738033053,2.69,2610.7,2610.2,0.7685]
[1727738033264,0.75171,2610.6,2610.4,0.38313]
[1727738036755,0.3686,2610.6,2610.4,0.38313]
[1727738036960,0.3686,2610.6,2610.5,0.38312]
[1727738037167,0.3686,2610.6,2610.2,0.7685]
[1727738037468,0.38314,2610.4,2610.2,1.15165]
[1727738037666,3.07313,2610.5,2610.3,0.38315]
[1727738037859,0.38314,2610.4,2610.2,1.15166]
[1727738038067,2.69,2610.5,2610.2,0.7685]
[1727738038269,0.38315,2610.4,2610.2,0.3788]
[1727738038575,0.38315,2610.4,2610.2,0.76196]
[1727738039077,0.38314,2610.4,2610.2,0.76196]
[1727738039766,0.38314,2610.4,2610.2,0.3788]
[1727738039964,0.38314,2610.4,2610.2,0.76196]
[1727738040168,0.38315,2610.3,2610.2,0.3788]
[1727738040378,2.69,2610.3,2609.9,0.3928]
[1727738040562,0.38317,2610.2,2610.0,0.38318]
[1727738040874,2.69,2610.3,2610.2,0.38316]
[1727738041073,0.38318,2610.1,2609.9,0.3832]
[1727738041370,2.69,2610.0,2609.9,0.3832]
[1727738043268,3.5769,2610.5,2609.8,0.3872]
[1727738043269,2.69,2610.2,2609.8,0.3872]
[1727738043468,3.07317,2610.2,2610.0,0.38318]
[1727738043873,3.07317,2610.2,2609.8,0.3872]
[1727738043874,2.69,2610.2,2609.8,0.3872]
[1727738044069,2.69,2610.2,2609.8,0.38322]
[1727738044070,3.07321,2610.0,2609.8,0.38322]
[1727738044674,3.0732,2610.0,2609.8,0.38322]
[1727738045267,2.69,2610.0,2609.9,0.38321]
[1727738045872,2.69,2610.0,2609.8,0.38321]
[1727738046174,2.69,2610.0,2609.9,0.38321]
[1727738046385,2.69,2610.0,2609.7,0.3901]
[1727738046679,3.0879,2610.0,2609.9,0.38321]
[1727738047580,2.69,2610.3,2610.2,0.38316]
[1727738047774,2.69,2610.3,2610.1,0.38317]
[1727738048371,2.69,2610.3,2610.2,0.38316]
[1727738048773,2.69,2610.3,2610.1,0.38317]
[1727738049481,3.07315,2610.3,2610.1,0.38317]
[1727738050180,3.07315,2610.3,2609.7,3.5979]
[1727738050370,3.07315,2610.3,2610.1,0.38318]
[1727738050680,2.69,2610.3,2610.0,0.38319]
[1727738050869,0.38317,2610.2,2610.0,0.38319]
[1727738052078,2.69,2610.3,2609.7,3.5979]
[1727738052383,3.07315,2610.3,2610.1,0.38317]
[1727738052577,2.69,2610.3,2610.1,0.38317]
[1727738052778,2.69,2610.3,2610.2,0.38316]
[1727738053275,0.378,2610.7,2610.2,0.38316]
[1727738053276,0.95773,2610.8,2610.4,0.38313]
[1727738053481,0.38315,2610.3,2610.1,0.77397]
[1727738053673,2.69,2610.3,2610.2,0.38316]
[1727738054277,3.07315,2610.3,2610.1,0.77397]
[1727738054978,3.07313,2610.5,2610.3,0.38314]
[1727738055285,2.69,2610.5,2610.3,0.38314]
[1727738055478,0.38314,2610.4,2610.3,0.38314]
[1727738055872,0.38314,2610.4,2610.2,0.38316]
[1727738056479,0.38314,2610.4,2610.1,0.3908]
[1727738056788,0.38314,2610.4,2610.3,0.38314]
[1727738057091,0.38314,2610.4,2610.2,0.38316]
[1727738057288,0.38315,2610.3,2610.2,0.38316]
[1727738057486,0.38316,2610.2,2610.1,0.3908]
[1727738057686,0.76416,2610.2,2610.1,0.3908]
[1727738057988,0.38319,2610.1,2609.9,0.38321]
[1727738058290,2.69,2610.1,2609.9,0.38321]
[1727738058485,2.69,2610.1,2609.7,3.2078]
[1727738058694,0.38321,2609.9,2609.7,3.2078]
[1727738058890,2.69,2610.1,2609.7,3.2078]
[1727738059191,2.69,2610.1,2609.8,0.38322]
[1727738059588,0.3832,2610.0,2609.8,0.38322]
[1727738059884,2.69,2609.9,2609.7,3.59103]
[1727738060087,0.38322,2609.8,2609.7,3.59103]
[1727738060486,0.38322,2609.8,2609.7,3.2078]
[1727738060888,0.38322,2609.8,2609.7,3.59104]
[1727738061085,3.0887,2609.9,2609.7,3.59104]
[1727738061287,0.38324,2609.7,2609.6,0.38325]
[1727738061488,2.69,2609.7,2609.4,0.3656]
[1727738061794,0.38326,2609.6,2609.5,0.38327]
[1727738061993,0.74896,2609.6,2609.5,0.38327]
[1727738062287,0.3657,2609.6,2609.4,0.3656]
[1727738062487,0.38327,2609.5,2609.3,0.38329]
[1727738062693,6.522,2609.4,2609.1,0.4022]
[1727738062893,3.0733,2609.3,2609.1,0.78552]
[1727738063484,2.69,2609.3,2609.1,0.78552]
[1727738063688,2.69,2609.3,2609.1,0.4022]
[1727738064083,2.69,2609.3,2609.1,0.78552]
[1727738064084,3.0733,2609.3,2609.1,0.78552]
[1727738064280,2.69,2609.3,2609.1,0.78552]
[1727738064488,3.0733,2609.3,2609.1,0.4022]
[1727738064890,2.69,2609.3,2609.1,0.78552]
[1727738065090,2.69,2609.3,2609.2,0.38331]
[1727738065284,2.69,2609.3,2609.1,0.78552]
[1727738065487,2.69,2609.3,2609.1,0.78553]
[1727738065897,2.69,2609.3,2609.2,0.38331]
[1727738067596,2.69,2609.3,2609.1,0.4022]
[1727738067784,2.69,2609.3,2609.1,0.78552]
[1727738068090,2.69,2609.3,2609.2,0.38331]
[1727738069691,2.69,2609.5,2609.1,0.4022]
[1727738069899,2.69,2609.5,2609.4,0.38328]
[1727738070303,3.5735,2609.6,2609.5,0.38327]
[1727738070800,0.3657,2609.6,2609.5,0.38327]
[1727738072587,0.3657,2609.6,2609.3,0.38329]
[1727738072588,0.74896,2609.6,2609.3,0.38329]
[1727738072797,0.74896,2609.6,2609.4,0.38328]
[1727738072996,0.3657,2609.6,2609.2,3.5805]
[1727738073195,3.07327,2609.5,2609.2,3.5911]
[1727738073398,2.69,2609.3,2609.1,0.78552]
[1727738073599,3.07331,2609.3,2609.1,0.4022]
[1727738074298,3.07331,2609.3,2609.0,0.38333]
[1727738074299,0.38331,2609.2,2609.0,0.38333]
[1727738074506,2.69,2609.3,2609.0,0.38334]
[1727738074507,3.0733,2609.3,2609.0,0.38334]
[1727738074796,3.0733,2609.3,2609.1,0.38332]
[1727738075598,2.69,2609.3,2609.1,0.38332]
[1727738075898,2.69,2609.3,2609.2,0.38331]
[1727738076303,3.07327,2609.5,2609.2,0.38331]
[1727738076694,2.69,2609.5,2608.9,0.3786]
[1727738076892,0.3833,2609.3,2608.9,0.3786]
[1727738077105,0.38329,2609.4,2609.1,0.38332]
[1727738077893,3.07328,2609.5,2609.2,0.38331]
[1727738078094,3.95675,2609.6,2609.4,0.38327]
[1727738078404,3.95675,2609.6,2608.9,1.33697]
[1727738078405,3.5735,2609.6,2609.5,0.38327]
[1727738079007,3.5735,2609.6,2609.4,0.38327]
[1727738079211,3.5735,2609.6,2609.5,0.4032]
[1727738079508,3.95675,2609.6,2609.5,0.4032]
[1727738080403,3.2078,2609.6,2609.5,0.4032]
[1727738080599,3.2078,2609.6,2609.5,1.18027]
[1727738082505,3.2078,2609.6,2609.5,5.01227]
[1727738082707,3.07321,2609.9,2609.5,4.629]
[1727738082899,3.07321,2609.9,2609.6,0.38324]
[1727738083209,2.69,2609.9,2609.6,0.38324]
[1727738083408,0.38321,2610.0,2609.7,0.38323]
[1727738083609,0.38321,2609.9,2609.7,0.38323]
[1727738084012,2.69,2610.0,2609.5,0.797]
[1727738084225,3.07323,2609.8,2609.6,0.38324]
[1727738085122,2.69,2609.8,2609.7,0.38324]
[1727738086224,2.69,2609.8,2609.5,0.797]
[1727738086225,3.07323,2609.8,2609.6,0.38324]
[1727738086416,0.38325,2609.6,2609.5,0.797]
[1727738086612,3.07325,2609.6,2609.5,0.4032]
[1727738087221,3.07325,2609.6,2609.3,0.38329]
[1727738087420,0.38327,2609.5,2609.3,0.38329]
[1727738087622,2.69,2609.6,2609.2,0.3783]
[1727738087918,2.69,2609.6,2609.4,0.38328]
[1727738087919,3.07326,2609.6,2609.4,0.38328]
[1727738090324,2.69,2609.6,2609.4,0.38328]
[1727738090523,3.07326,2609.6,2609.4,0.38328]
[1727738091921,0.388,2609.7,2609.2,3.5861]
[1727738092232,5.8978,2609.8,2609.7,0.38324]
[1727738092233,3.2078,2609.8,2609.7,0.38324]
[1727738093622,2.69,2610.0,2609.5,3.2078]
[1727738093820,2.69,2610.0,2609.9,0.38321]
[1727738094231,2.69,2610.0,2609.7,0.3765]
[1727738094425,3.0732,2610.0,2609.8,0.38322]
[1727738095026,2.69,2610.0,2609.9,0.38321]
[1727738095222,3.0766,2610.3,2609.8,3.2078]
[1727738096229,2.69,2610.3,2609.8,3.2078]
[1727738096533,3.59095,2610.4,2609.8,3.2078]
[1727738096728,0.38317,2610.2,2610.0,0.38319]
[1727738096928,0.38319,2610.1,2609.8,3.2078]
[1727738097129,0.4048,2610.1,2609.7,0.3765]
[1727738097329,0.4048,2610.1,2609.7,0.75973]
[1727738097330,0.3832,2610.0,2609.7,0.75973]
[1727738097534,0.4017,2610.0,2609.7,0.75973]
[1727738097734,0.38321,2609.9,2609.7,0.75973]
[1727738098134,0.38321,2609.9,2609.7,0.3765]
[1727738098333,0.4017,2610.0,2609.5,3.2078]
[1727738098334,2.69,2609.8,2609.5,3.2078]
[1727738098528,0.38324,2609.7,2609.5,0.38327]
[1727738099230,2.69,2609.6,2609.3,0.38329]
[1727738099434,3.46397,2609.5,2609.2,3.2078]
[1727738099728,3.46397,2609.5,2609.3,0.38329]
[1727738100536,3.0807,2609.5,2609.3,0.38329]
[1727738100837,3.46397,2609.5,2609.3,0.38329]
[1727738101240,3.0807,2609.5,2609.0,0.7916]
[1727738101443,3.46398,2609.5,2609.2,0.3833]
[1727738101740,3.0807,2609.5,2609.0,0.7916]
[1727738102035,0.3907,2609.5,2609.1,3.2078]
[1727738102230,3.2078,2609.8,2609.5,0.38326]
[1727738102231,3.59103,2609.8,2609.5,0.38326]
[1727738103038,3.59103,2609.8,2609.6,0.38325]
[1727738103741,3.2078,2609.8,2609.6,0.38325]
[1727738104042,0.38325,2609.7,2609.5,0.38327]
[1727738104246,2.69,2609.6,2609.5,0.38327]
[1727738104839,5.8978,2609.8,2609.7,0.38324]
[1727738105340,0.3742,2609.9,2609.8,0.38322]
[1727738108548,0.3742,2609.9,2609.6,0.394]
[1727738108734,2.69,2609.8,2609.5,0.3942]
[1727738108936,2.69,2609.6,2609.4,3.2078]
[1727738109240,2.69,2609.5,2609.4,3.2078]
[1727738110044,3.0575,2609.5,2609.1,0.4019]
[1727738110338,3.0575,2609.5,2609.3,0.38329]
[1727738110541,3.0575,2609.5,2609.2,0.38331]
[1727738110542,0.38329,2609.4,2609.2,0.38331]
[1727738110743,3.0575,2609.5,2609.0,4.59817079]
[1727738110744,3.07332,2609.2,2609.0,3.59113]
[1727738110935,2.69,2609.2,2608.7,0.3695]
[1727738111135,2.69,2609.0,2608.6,1.39037079]
[1727738111347,2.69,2609.0,2608.9,0.38336]
[1727738112040,6.5228,2609.0,2608.6,1.00437079]
[1727738112236,0.3834,2608.6,2608.5,3.2078]
[1727738112548,0.38341,2608.6,2608.1,0.78537]
[1727738112846,2.69,2608.4,2608.1,0.78537]
[1727738113145,2.69,2608.4,2608.2,0.38346]
[1727738113345,2.69,2608.4,2608.1,0.4019]
[1727738113543,0.402,2608.5,2607.7,1.00437079]
[1727738113544,2.69,2608.2,2607.7,1.00437079]
[1727738113741,2.69,2608.2,2607.7,0.38352]
[1727738113742,2.69,2608.0,2607.7,0.38352]
[1727738114346,2.69,2608.0,2607.5,3.2078]
[1727738114643,2.69,2608.0,2607.9,0.3835]
[1727738115639,2.69,2608.0,2607.5,3.2078]
[1727738116240,2.69,2608.0,2607.8,0.38351]
[1727738117149,2.69,2608.0,2607.6,0.38355]
[1727738117448,2.69,2608.0,2607.8,0.3835]
[1727738117657,2.69,2608.0,2607.5,3.2078]
[1727738117841,2.69,2608.0,2607.9,0.3835]
[1727738118042,2.69,2608.1,2607.9,0.3835]
[1727738118245,2.69,2608.1,2607.8,0.38351]
[1727738118447,2.69,2608.1,2607.9,0.3835]
[1727738118835,2.69,2608.1,2607.5,3.2078]
[1727738119046,3.0735,2607.9,2607.5,3.2078]
[1727738119242,2.69,2607.7,2607.5,3.59135]
[1727738119548,2.69,2607.7,2607.6,0.38355]
[1727738120050,2.69,2607.7,2607.5,3.2078]
[1727738120249,2.69,2607.7,2607.3,0.771]
[1727738120250,3.07354,2607.7,2607.3,0.38358]
[1727738120449,3.07354,2607.7,2606.9,0.3951]
[1727738120450,2.69,2607.5,2607.4,0.38358]
[1727738126855,0.7791,2607.7,2607.2,3.2078]
[1727738126856,2.69,2607.7,2607.2,3.2078]
[1727738127049,2.69,2607.7,2607.6,0.38354]
[1727738128349,0.3802,2608.1,2607.9,0.3835]
[1727738128550,0.3802,2608.1,2607.7,0.7688]
[1727738128753,0.3802,2608.1,2607.8,0.38351]
[1727738128754,2.69,2608.0,2607.8,0.38351]
[1727738129047,2.69,2608.0,2607.8,0.3835]
[1727738129948,2.69,2608.0,2607.8,0.38352]
[1727738130149,2.69,2608.0,2607.9,0.3835]
[1727738130454,3.07349,2608.0,2607.8,0.38351]
[1727738130650,2.69,2608.0,2607.8,0.38352]
[1727738130850,2.69,2608.0,2607.7,1.15233]
[1727738131156,3.0735,2608.0,2607.7,1.15233]
[1727738131747,3.0735,2608.0,2607.7,0.7688]
[1727738131951,3.0735,2608.0,2607.8,0.38352]
[1727738132341,0.38356,2607.6,2607.3,0.77258]
[1727738132543,2.69,2607.4,2607.3,0.38358]
[1727738132743,2.69,2607.4,2607.3,0.38359]
[1727738133157,3.0781,2607.5,2607.0,0.7738]
[1727738133456,3.0781,2607.5,2607.4,0.38358]
[1727738136452,3.0781,2607.5,2607.3,0.38359]
[1727738136760,3.46167,2607.5,2607.2,0.3836]
[1727738137358,3.46167,2607.5,2607.0,0.7738]
[1727738137359,2.69,2607.3,2607.0,0.3848]
[1727738137660,3.0736,2607.3,2607.1,0.38362]
[1727738137850,3.0736,2607.3,2607.0,0.76843]
[1727738138050,2.69,2607.3,2607.0,0.3848]
[1727738138256,2.69,2607.3,2607.2,0.38361]
[1727738138852,3.0781,2607.5,2607.4,0.38358]
[1727738139355,5.8978,2607.7,2607.6,0.38355]
[1727738139552,11.47951,2607.9,2607.7,0.38353]
[1727738139553,14.16951,2607.9,2607.7,0.38353]
[1727738140052,14.16951,2607.9,2607.5,0.7927]
[1727738140053,13.786,2607.9,2607.5,0.7927]
[1727738140258,13.786,2607.9,2607.8,0.38352]
[1727738140857,14.16951,2607.9,2607.7,0.38352]
[1727738141159,13.786,2607.9,2607.7,0.38352]
[1727738141468,0.38354,2607.7,2607.5,0.77386]
[1727738141655,2.69,2607.6,2607.5,0.77386]
[1727738143157,3.07352,2607.8,2607.5,0.3903]
[1727738143364,3.07352,2607.8,2607.6,0.38354]
[1727738143855,2.69,2607.8,2607.5,0.3903]
[1727738144055,0.38354,2607.7,2607.5,0.77385]
[1727738144259,0.38354,2607.7,2607.5,0.38355]
[1727738144457,2.69,2607.6,2607.5,0.38355]
[1727738144651,2.69,2607.6,2607.2,3.9802]
[1727738144853,2.69,2607.6,2607.2,3.2078]
[1727738144854,2.69,2607.3,2607.2,3.2078]
[1727738145052,3.07359,2607.3,2607.2,3.2078]
[1727738145257,2.69,2607.3,2607.2,3.59141]
[1727738146759,2.69,2607.3,2607.2,0.38361]
[1727738149563,2.69,2607.3,2607.1,0.38361]
[1727738149768,3.0736,2607.3,2607.1,0.38361]
[1727738149961,2.69,2607.3,2606.8,3.2078]
[1727738150154,2.69,2607.3,2607.2,0.38361]
[1727738151373,3.2078,2607.7,2607.6,0.38355]
[1727738151666,3.1851,2607.9,2607.8,0.38352]
[1727738151667,2.69,2607.9,2607.8,0.38352]
[1727738151856,3.9614,2608.1,2607.4,4.16674]
[1727738152170,3.5887,2608.1,2608.0,0.38349]
[1727738153160,3.5887,2608.1,2607.9,0.38349]
[1727738153161,3.97218,2608.1,2607.9,0.38349]
[1727738153360,3.5887,2608.1,2608.0,0.38349]
[1727738153865,3.2078,2608.1,2608.0,0.38349]
[1727738154565,2.69,2608.2,2607.6,0.95885]
[1727738154765,2.69,2608.2,2608.1,0.38347]
[1727738156778,3.07346,2608.2,2608.0,0.38347]
[1727738157079,3.07346,2608.2,2608.1,0.38347]
[1727738157771,2.69,2608.2,2607.8,0.7666]
[1727738157974,2.69,2608.2,2607.4,3.2078]
[1727738157975,0.38352,2607.8,2607.4,3.2078]
[1727738158171,2.69,2607.7,2607.6,0.38354]
[1727738158473,3.07354,2607.7,2607.5,0.38356]
[1727738158675,0.405,2607.6,2607.5,0.38356]
[1727738159571,2.69,2607.7,2607.4,0.761]
[1727738159771,2.69,2607.7,2607.6,0.38355]
[1727738160579,3.07354,2607.7,2607.5,0.38356]
[1727738160770,2.69,2607.7,2607.5,0.38356]
[1727738161076,0.38355,2607.6,2607.5,0.38356]
[1727738161267,2.69,2607.7,2607.5,0.38356]
[1727738161268,3.07354,2607.7,2607.5,0.38356]
[1727738161668,3.07354,2607.7,2607.4,0.761]
[1727738161873,3.07354,2607.7,2607.5,0.38355]
[1727738163771,0.38356,2607.5,2607.2,0.38361]
[1727738163972,5.8978,2607.7,2607.4,0.38357]
[1727738163973,0.38355,2607.6,2607.4,0.38357]
[1727738164282,2.69,2607.5,2607.4,0.38357]
[1727738165171,0.38359,2607.4,2607.2,0.3836]
[1727738165375,0.38363,2607.1,2606.9,0.38365]
[1727738165576,2.69,2607.0,2606.9,0.38365]
[1727738166274,2.69,2607.0,2606.8,0.3929]
[1727738166275,2.69,2607.0,2606.7,1.00437079]
[1727738166471,2.69,2607.0,2606.6,2.28675619]
[1727738166472,2.69,2606.8,2606.6,0.38368]
[1727738167371,2.69,2606.8,2606.4,0.38372]
[1727738167571,3.0717,2606.8,2606.5,0.3837]
[1727738167769,3.0717,2606.8,2606.6,0.38369]
[1727738168171,3.0717,2606.8,2606.3,0.3889]
[1727738168475,0.3838,2606.9,2606.3,1.39327079]
[1727738168675,0.3838,2606.9,2606.8,0.38366]
[1727738169380,0.3838,2606.9,2606.3,0.3889]
[1727738169574,2.69,2606.8,2606.3,0.3889]
[1727738169974,2.69,2606.8,2606.7,0.38368]
[1727738170473,2.69,2606.8,2606.3,0.3889]
[1727738170678,2.69,2606.8,2606.7,0.38368]
[1727738171275,2.69,2606.8,2606.3,0.3889]
[1727738171276,2.69,2606.8,2606.6,0.38368]
[1727738171481,3.07367,2606.8,2606.5,0.3837]
[1727738171782,2.69,2606.8,2606.3,0.3889]
[1727738171976,2.69,2606.8,2606.6,0.38369]
[1727738172788,0.3838,2606.9,2606.8,0.38366]
[1727738176379,0.76746,2606.9,2606.6,0.38369]
[1727738176581,2.69,2606.7,2606.6,0.38369]
[1727738178392,2.69,2606.7,2606.5,0.3837]
[1727738178587,2.69,2606.7,2606.3,0.3889]
[1727738178588,3.07369,2606.7,2606.4,0.38372]
[1727738178788,2.69,2606.5,2606.3,0.3889]
[1727738179283,2.69,2606.5,2606.4,0.38372]
[1727738179480,2.69,2606.5,2606.3,0.77263]
[1727738180085,2.69,2606.5,2606.4,0.38372]
[1727738180290,2.69,2606.5,2606.3,0.77263]
[1727738181892,2.69,2606.5,2606.4,0.38372]
[1727738182191,2.69,2606.5,2606.3,0.77263]
[1727738182579,3.07371,2606.5,2606.3,0.77263]
[1727738183493,0.38372,2606.4,2606.3,0.3889]
[1727738183682,0.3814,2606.4,2606.3,0.3889]
[1727738183884,0.3814,2606.4,2606.3,0.77264]
[1727738184080,2.69,2606.5,2606.3,0.3889]
[1727738184391,2.69,2606.5,2606.4,0.38372]
[1727738185195,2.69,2606.5,2606.3,0.77263]
[1727738185389,2.69,2606.5,2606.4,0.38372]
[1727738185586,0.38369,2606.7,2606.3,0.3889]
[1727738185587,3.07369,2606.7,2606.3,0.3889]
[1727738185792,3.07369,2606.7,2606.4,0.38371]
[1727738185996,3.07369,2606.7,2606.5,0.3837]
[1727738186594,0.3837,2606.6,2606.4,0.38372]
[1727738186790,2.69,2606.5,2606.3,0.3889]
[1727738186998,2.69,2606.5,2606.4,0.38372]
[1727738187790,2.69,2606.5,2606.3,0.3889]
[1727738187990,6.5268,2606.5,2605.8,3.2078]
[1727738188195,2.69,2606.1,2605.8,3.9816]
[1727738188391,2.69,2606.1,2606.0,0.38378]
[1727738192190,2.69,2606.1,2606.0,4.22138]
[1727738193387,2.69,2606.4,2606.0,3.8376]
[1727738193587,2.69,2606.6,2606.2,3.2078]
[1727738193786,2.69,2606.4,2606.3,0.3953]
[1727738193989,2.69,2606.4,2605.8,1.35673]
[1727738193990,3.07372,2606.4,2606.1,0.38376]
[1727738194195,2.69,2606.2,2606.1,0.38376]
[1727738196396,2.69,2606.4,2606.2,0.38375]
[1727738196596,3.07373,2606.4,2606.2,0.38375]
[1727738196992,2.69,2606.4,2606.1,0.38376]
[1727738197306,0.38374,2606.3,2606.1,0.38376]
[1727738197495,0.3695,2606.2,2606.1,0.38376]
[1727738198607,2.69,2606.4,2606.2,0.38374]
[1727738199504,2.69,2606.4,2605.9,3.9849]
[1727738199707,2.69,2606.4,2606.3,0.38374]
[1727738202601,2.69,2606.4,2605.9,3.9849]
[1727738202813,2.69,2606.4,2606.3,0.38374]
[1727738203207,1.35269,2606.8,2606.5,0.38371]
[1727738203208,2.69,2606.6,2606.5,0.38371]
[1727738203412,2.69,2606.6,2606.3,3.8368]
[1727738203413,5.8978,2606.9,2606.4,0.779]
[1727738203613,5.8978,2606.9,2606.6,0.38369]
[1727738203807,0.38367,2606.8,2606.6,0.38369]
[1727738204706,5.8978,2606.9,2606.4,0.779]
[1727738204911,3.2078,2606.9,2606.8,0.38366]
[1727738205106,0.397,2607.4,2606.8,6.0]
[1727738205107,3.2078,2607.4,2606.8,6.0]
[1727738205310,3.2078,2607.4,2606.9,0.7838]
[1727738205520,2.69,2607.3,2607.1,0.38361]
[1727738205715,2.69,2607.3,2607.2,0.38361]
[1727738206215,2.69,2607.3,2607.1,0.38361]
[1727738206515,2.69,2607.3,2607.1,0.38362]
[1727738206708,2.69,2607.3,2607.2,0.38361]
[1727738207610,2.69,2607.3,2607.1,0.38361]
[1727738207916,2.69,2607.3,2606.9,3.9916]
[1727738208306,0.394,2607.2,2607.1,0.38362]
[1727738210512,2.69,2607.3,2607.2,0.38361]
[1727738211913,2.69,2607.5,2606.9,3.9916]
[1727738212216,2.69,2607.7,2607.2,3.2078]
[1727738212415,0.09,2608.3,2608.0,0.38349]
[1727738212614,3.08234304,2608.6,2607.6,3.64887]